[Event "TUR-chT Superleague 2018"]
[Site "Ankara"]
[Date "2018.08.03"]
[Round "10"]
[White "Ivic, Velimir"]
[Black "Erturan, Yakup"]
[Result "1/2-1/2"]
[ECO "B37"]
[WhiteElo "2456"]
[BlackElo "2378"]
[Annotator "ChessBase"]
[PlyCount "111"]
[EventDate "2018.07.25"]
[EventType "team-tourn"]
[EventCountry "TUR"]
[SourceTitle "playchess.com"]
[Source "ChessBase"]
[SourceQuality "1"]
[TimeControl "40/5400+30:1800+30"]

1. e4 {[%emt 0:00:30]} c5 {[%emt 0:01:30]} 2. Nf3 {[%emt 0:00:30]} Nc6 {[%emt 0:00:30]} 3. d4 {[%emt 0:00:30]} cxd4 {[%emt 0:00:00]} 4. Nxd4 {[%emt 0:00:00]} g6 {[%emt 0:00:00]} 5. c4 {[%emt 0:00:00]} Bg7 {[%emt 0:00:30]} 6. Nc2 {[%emt 0:00:00]} d6 {[%emt 0:03:30]} 7. Be2 {[%emt 0:00:00]} Nf6 {[%emt 0:04:30]} 8. Nc3 {[%emt 0:00:30]} O-O {[%emt 0:03:30]} 9. O-O {[%emt 0:00:30]} Be6 {[%emt 0:04:30]} 10. Bd2 {[%emt 0:00:00]} Nd7 {[%emt 0:03:30]} 11. Rc1 {[%emt 0:01:00]} a5 {[%emt 0:02:30]} 12. Na3 {[%emt 0:06:30]} Nc5 {[%emt 0:03:30]} 13. Nab5 {[%emt 0:13:30]} Ne5 {[%emt 0:15:30]} 14. b3 {[%emt 0:09:30]} Ned3 {[%emt 0:17:30]} 15. Rb1 {[%emt 0:06:30]} Ne5 {[%emt 0:10:30]} 16. Be3 {[%emt 0:03:30]} Bd7 {[%emt 0:09:41]} 17. f4 {[%emt 0:06:30]} Bxb5 {[%emt 0:01:09]} 18. Nxb5 {[%emt 0:01:30]} Nc6 {[%emt 0:00:26]} 19. e5 {[%emt 0:03:30]} Na7 {[%emt 0:02:33]} 20. Nxa7 {[%emt 0:19:30]} Rxa7 {[%emt 0:00:04]} 21. exd6 {[%emt 0:00:30]} Qxd6 {[%emt 0:00:28]} 22. Bf3 {[%emt 0:01:30]} Qc7 {[%emt 0:03:50]} 23. Qe2 {[%emt 0:08:06]} Rd8 {[%emt 0:02:16]} 24. Rbd1 {[%emt 0:01:44]} b6 {[%emt 0:00:25]} 25. Qc2 {[%emt 0:09:10]} Rxd1 {[%emt 0:05:23]} 26. Rxd1 {[%emt 0:00:14]} Qc8 {[%emt 0:02:48]} 27. a3 {[%emt 0:03:11]} Rd7 {[%emt 0:00:59]} 28. b4 {[%emt 0:02:15]} Rxd1+ {[%emt 0:00:14]} 29. Qxd1 {[%emt 0:00:06]} axb4 {[%emt 0:02:07]} 30. axb4 {[%emt 0:00:30]} Qe6 {[%emt 0:00:15]} 31. Qd2 {[%emt 0:01:24]} Ne4 {[%emt 0:00:44]} 32. Qd8+ {[%emt 0:00:36]} Bf8 {[%emt 0:00:01]} 33. Qd5 {[%emt 0:00:15]} Qxd5 {[%emt 0:01:11]} 34. cxd5 {[%emt 0:00:30]} Nc3 {[%emt 0:00:30]} 35. Bd4 {[%emt 0:00:30]} Na2 {[%emt 0:00:30]} 36. b5 {[%emt 0:00:30]} Bg7 {[%emt 0:00:30]} 37. Bxb6 {[%emt 0:00:30]} Nc3 {[%emt 0:00:30]} 38. Bc5 {[%emt 0:00:30]} Nxb5 {[%emt 0:00:30]} 39. Bxe7 {[%emt 0:00:30]} Bf8 {[%emt 0:00:00]} 40. Bf6 {[%emt 0:00:00]} Bg7 {[%emt 0:00:00]} 41. Bd8 {[%emt 0:10:59]} Kf8 {[%emt 0:02:56]} 42. Kf1 {[%emt 0:02:30]} Ke8 {[%emt 0:00:00]} 43. Bh4 {[%emt 0:00:30]} Kd7 {[%emt 0:00:00]} 44. Ke2 {[%emt 0:00:30]} Nd4+ {[%emt 0:04:30]} 45. Kd3 {[%emt 0:05:21]} Nxf3 {[%emt 0:01:30]} 46. gxf3 {[%emt 0:00:30]} f5 {[%emt 0:00:00]} 47. Bf2 {[%emt 0:00:14]} Bb2 {[%emt 0:00:00]} 48. Bd4 {[%emt 0:01:15]} Bc1 {[%emt 0:00:30]} 49. Be3 {[%emt 0:01:58]} Bb2 {[%emt 0:01:30]} 50. Kc4 {[%emt 0:00:31]} Ba3 {[%emt 0:00:30]} 51. Bd2 {[%emt 0:01:48]} Bd6 {[%emt 0:00:30]} 52. Kd4 {[%emt 0:00:46]} Bc7 {[%emt 0:00:30]} 53. Ke3 {[%emt 0:00:49]} Bb6+ {[%emt 0:01:30]} 54. Kd3 {[%emt 0:00:30]} Bc7 {[%emt 0:00:00]} 55. Kc4 {[%emt 0:06:25]} Bb8 {[%emt 0:00:00]} 56. Kd4 {[%emt 0:01:24]} 1/2-1/2

[Event "TUR-chT Superleague 2018"]
[Site "Ankara"]
[Date "2018.08.03"]
[Round "10"]
[White "Szczepkowska, Karina"]
[Black "Atalik, Ekaterina"]
[Result "1-0"]
[ECO "D94"]
[WhiteElo "2404"]
[BlackElo "2461"]
[Annotator "ChessBase"]
[PlyCount "97"]
[EventDate "2018.07.25"]
[EventType "team-tourn"]
[EventCountry "TUR"]
[SourceTitle "playchess.com"]
[Source "ChessBase"]
[SourceQuality "1"]
[TimeControl "40/5400+30:1800+30"]

1. d4 {[%emt 0:00:30]} Nf6 {[%emt 0:00:30]} 2. c4 {[%emt 0:00:30]} g6 {[%emt 0:00:00]} 3. Nc3 {[%emt 0:01:30]} d5 {[%emt 0:00:00]} 4. Nf3 {[%emt 0:00:30]} Bg7 {[%emt 0:01:30]} 5. e3 {[%emt 0:00:00]} O-O {[%emt 0:00:30]} 6. Be2 {[%emt 0:00:00]} e6 {[%emt 0:03:30]} 7. O-O {[%emt 0:03:30]} Nbd7 {[%emt 0:00:30]} 8. Qc2 {[%emt 0:07:30]} c6 {[%emt 0:03:30]} 9. e4 {[%emt 0:10:30]} dxe4 {[%emt 0:00:30]} 10. Nxe4 {[%emt 0:00:30]} Nxe4 {[%emt 0:00:30]} 11. Qxe4 {[%emt 0:00:00]} c5 {[%emt 0:00:30]} 12. Rd1 {[%emt 0:05:00]} cxd4 {[%emt 0:03:30]} 13. Nxd4 {[%emt 0:00:30]} Nc5 {[%emt 0:02:30]} 14. Qe3 {[%emt 0:00:00]} Qf6 {[%emt 0:05:30]} 15. b3 {[%emt 0:16:00]} b6 {[%emt 0:05:30]} 16. Bf3 {[%emt 0:02:30]} e5 {[%emt 0:09:30]} 17. Bxa8 {[%emt 0:03:30]} exd4 {[%emt 0:00:30]} 18. Qf3 {[%emt 0:08:30]} Qh4 {[%emt 0:02:30]} 19. Qf4 {[%emt 0:15:30]} Qxf4 {[%emt 0:03:30]} 20. Bxf4 {[%emt 0:00:30]} Bf5 {[%emt 0:00:00]} 21. Bf3 {[%emt 0:03:30]} Bc2 {[%emt 0:02:00]} 22. Rd2 {[%emt 0:00:00]} d3 {[%emt 0:03:30]} 23. Rc1 {[%emt 0:00:00]} Re8 {[%emt 0:11:30]} 24. h4 {[%emt 0:06:28]} Bc3 {[%emt 0:08:30]} 25. Rdxc2 {[%emt 0:00:47]} dxc2 {[%emt 0:00:30]} 26. Rxc2 {[%emt 0:01:44]} Re1+ {[%emt 0:00:30]} 27. Kh2 {[%emt 0:00:00]} Bf6 {[%emt 0:00:30]} 28. h5 {[%emt 0:03:15]} Ne6 {[%emt 0:01:30]} 29. Rc1 {[%emt 0:01:32]} Rxc1 {[%emt 0:02:30]} 30. Bxc1 {[%emt 0:00:02]} Bd4 {[%emt 0:01:30]} 31. hxg6 {[%emt 0:02:37]} hxg6 {[%emt 0:00:30]} 32. Be3 {[%emt 0:02:50]} Bxe3 {[%emt 0:01:30]} 33. fxe3 {[%emt 0:00:02]} a5 {[%emt 0:02:30]} 34. Kg3 {[%emt 0:01:38]} Kg7 {[%emt 0:00:30]} 35. a3 {[%emt 0:03:00]} Nc5 {[%emt 0:01:30]} 36. b4 {[%emt 0:00:18]} axb4 {[%emt 0:01:30]} 37. axb4 {[%emt 0:00:01]} Na6 {[%emt 0:00:30]} 38. c5 {[%emt 0:01:21]} bxc5 {[%emt 0:00:30]} 39. b5 {[%emt 0:00:47]} Nb8 {[%emt 0:00:30]} 40. Kf4 {[%emt 0:00:00]} Kf6 {[%emt 0:00:00]} 41. Bg4 {[%emt 0:04:38]} Ke7 {[%emt 0:10:00]} 42. Ke5 {[%emt 0:00:30]} f5 {[%emt 0:02:30]} 43. Be2 {[%emt 0:05:30]} Nd7+ {[%emt 0:01:30]} 44. Kd5 {[%emt 0:00:30]} g5 {[%emt 0:03:30]} 45. Kc6 {[%emt 0:03:30]} f4 {[%emt 0:09:30]} 46. exf4 {[%emt 0:01:30]} gxf4 {[%emt 0:00:00]} 47. Kc7 {[%emt 0:00:00]} Nf6 {[%emt 0:03:00]} 48. b6 {[%emt 0:01:24]} Nd5+ {[%emt 0:01:30]} 49. Kc6 {[%emt 0:00:08]} 1-0

[Event "TUR-chT Superleague 2018"]
[Site "Ankara"]
[Date "2018.08.03"]
[Round "10"]
[White "Soysal, Serkan"]
[Black "Karagollu, Ahmet"]
[Result "1-0"]
[ECO "A49"]
[WhiteElo "2402"]
[BlackElo "2127"]
[Annotator "NA"]
[PlyCount "81"]
[EventDate "2018.07.25"]
[EventType "team-tourn"]
[EventCountry "TUR"]
[SourceTitle "playchess.com"]
[Source "ChessBase"]
[SourceQuality "1"]
[TimeControl "40/5400+30:1800+30"]

1. d4 {[%emt 0:00:30]} Nf6 {[%emt 0:00:30]} 2. Nf3 {[%emt 0:00:30]} g6 {[%emt 0:00:30]} 3. g3 {[%emt 0:00:30]} Bg7 {[%emt 0:00:30]} 4. Bg2 {[%emt 0:00:00]} O-O {[%emt 0:00:30]} 5. O-O {[%emt 0:00:00]} d6 {[%emt 0:00:00]} 6. Nc3 {[%emt 0:00:00]} c5 {[%emt 0:05:00]} 7. dxc5 {[%emt 0:02:00]} dxc5 {[%emt 0:00:30]} 8. Be3 {[%emt 0:09:30]} Qa5 {[%emt 0:18:30]} 9. Nd2 {[%emt 0:06:30]} Nbd7 {[%emt 0:14:30]} 10. h3 {[%emt 0:02:30]} Rb8 {[%emt 0:06:30]} 11. a4 {[%emt 0:09:30]} a6 {[%emt 0:09:30]} 12. Bf4 {[%emt 0:05:30]} e5 {[%emt 0:01:30]} 13. Be3 {[%emt 0:00:30]} Qc7 {[%emt 0:01:30]} 14. Nc4 {[%emt 0:00:30]} Rd8 {[%emt 0:08:30]} 15. Qd6 {[%emt 0:01:30]} Qxd6 {[%emt 0:01:30]} 16. Nxd6 {[%emt 0:00:30]} b6 {[%emt 0:06:30]} 17. Rfd1 {[%emt 0:05:30]} Nf8 {[%emt 0:01:30]} 18. Nc4 {[%emt 0:03:30]} Rxd1+ {[%emt 0:04:43]} 19. Rxd1 {[%emt 0:00:30]} Bf5 {[%emt 0:01:00]} 20. Rd2 {[%emt 0:10:30]} N8d7 {[%emt 0:01:37]} 21. Nd6 {[%emt 0:00:30]} Be6 {[%emt 0:03:06]} 22. g4 {[%emt 0:00:30]} h6 {[%emt 0:00:14]} 23. Bb7 {[%emt 0:00:30]} a5 {[%emt 0:00:58]} 24. Ncb5 {[%emt 0:04:30]} Bf8 {[%emt 0:02:09]} 25. Bc6 {[%emt 0:03:30]} Bxd6 {[%emt 0:04:16]} 26. Nxd6 {[%emt 0:00:00]} Kg7 {[%emt 0:00:22]} 27. f4 {[%emt 0:00:00]} exf4 {[%emt 0:02:03]} 28. Bxf4 {[%emt 0:00:30]} Rh8 {[%emt 0:00:53]} 29. e4 {[%emt 0:01:30]} g5 {[%emt 0:01:29]} 30. Bg3 {[%emt 0:00:30]} Nb8 {[%emt 0:02:15]} 31. Bb7 {[%emt 0:02:30]} h5 {[%emt 0:00:53]} 32. Nf5+ {[%emt 0:02:30]} Kg6 {[%emt 0:00:49]} 33. e5 {[%emt 0:00:30]} hxg4 {[%emt 0:01:23]} 34. Ne7+ {[%emt 0:00:30]} Kg7 {[%emt 0:00:01]} 35. exf6+ {[%emt 0:00:30]} Kxf6 {[%emt 0:00:04]} 36. Nd5+ {[%emt 0:00:00]} Kg6 {[%emt 0:00:00]} 37. hxg4 {[%emt 0:01:00]} Nd7 {[%emt 0:01:38]} 38. Bc6 {[%emt 0:00:30]} Nb8 {[%emt 0:00:58]} 39. Bb5 {[%emt 0:00:30]} Bxg4 {[%emt 0:00:26]} 40. Be5 {[%emt 0:00:00]} Rf8 {[%emt 0:00:00]} 41. Ne7+ {[%emt 0:02:00]} 1-0

[Event "TUR-chT Superleague 2018"]
[Site "Ankara"]
[Date "2018.08.03"]
[Round "10"]
[White "Buksa, Nataliya"]
[Black "Injac, Teodora"]
[Result "1-0"]
[ECO "B92"]
[WhiteElo "2376"]
[BlackElo "2271"]
[Annotator "NA"]
[PlyCount "167"]
[EventDate "2018.07.25"]
[EventType "team-tourn"]
[EventCountry "TUR"]
[SourceTitle "playchess.com"]
[Source "ChessBase"]
[SourceQuality "1"]
[TimeControl "40/5400+30:1800+30"]

1. e4 {[%emt 0:00:30]} c5 {[%emt 0:00:30]} 2. Nf3 {[%emt 0:00:30]} d6 {[%emt 0:00:30]} 3. d4 {[%emt 0:00:30]} cxd4 {[%emt 0:00:30]} 4. Nxd4 {[%emt 0:00:30]} Nf6 {[%emt 0:00:30]} 5. Nc3 {[%emt 0:00:00]} a6 {[%emt 0:00:00]} 6. Be2 {[%emt 0:01:00]} e5 {[%emt 0:00:00]} 7. Nb3 {[%emt 0:00:30]} Be7 {[%emt 0:00:00]} 8. Bg5 {[%emt 0:00:00]} Be6 {[%emt 0:00:00]} 9. Bxf6 {[%emt 0:01:00]} Bxf6 {[%emt 0:00:30]} 10. Qd3 {[%emt 0:00:00]} O-O {[%emt 0:03:30]} 11. O-O-O {[%emt 0:00:00] B92: Sicilian Najdorf: 6 Be2} (11. Rd1 Be7 12. Nd5 Bxd5 13. Qxd5 Qc7 14. c3 Nd7 15. Nd2 Rad8 16. O-O Bg5 17. Nf3 Nb6 18. Qb3 Bh6 {½-½ (32) Mastrovasilis,D (2580)-Saric,I (2689) Rio Achaea 2018}) 11... Be7 {[%emt 0:00:30]} 12. g3 {[%emt 0:00:30]} b5 {[%emt 0:17:30]} 13. Kb1 {[%emt 0:12:30]} Nd7 {[%emt 0:08:30]} 14. f4 {[%emt 0:00:30]} b4 {[%emt 0:07:30]} 15. Nd5 {[%emt 0:02:30]} Bxd5 {[%emt 0:00:00]} 16. Qxd5 {[%emt 0:00:30]} Nf6 {[%emt 0:10:00]} 17. Qd3 {[%emt 0:02:30]} Qc7 $146 {[%emt 0:03:30]} ({Predecessor:} 17... Qb6 18. Nd2 Rfd8 {1-0 (37) Chrzaszcz,M (1986)-Jacek,K (1987) Polanica Zdroj 2008}) 18. f5 {[%emt 0:19:30]} Rfd8 {[%emt 0:15:30]} 19. Bf3 {[%emt 0:00:30]} a5 {[%emt 0:01:30]} 20. g4 {[%emt 0:00:30]} a4 {[%emt 0:03:30]} 21. Nd2 {[%emt 0:01:30]} d5 {[%emt 0:04:30]} 22. exd5 {[%emt 0:02:30]} Ra5 {[%emt 0:01:30]} 23. Nc4 {[%emt 0:11:30]} Nxd5 {[%emt 0:01:48]} 24. Qe4 {[%emt 0:00:30]} Rc5 {[%emt 0:05:40]} 25. Ne3 {[%emt 0:06:30]} Nxe3 {[%emt 0:01:20]} 26. Rxd8+ {[%emt 0:04:30]} Bxd8 {[%emt 0:00:51]} 27. Qxe3 {[%emt 0:00:00]} a3 {[%emt 0:03:17]} 28. Rd1 {[%emt 0:01:00]} Be7 {[%emt 0:00:07]} 29. Be4 {[%emt 0:00:30]} h6 {[%emt 0:01:01]} 30. Qf2 {[%emt 0:06:30]} Bf6 {[%emt 0:02:37]} 31. h4 {[%emt 0:00:00]} Rc4 {[%emt 0:00:35]} 32. Qe2 {[%emt 0:04:00]} Bxh4 {[%emt 0:01:29]} 33. Bd5 {[%emt 0:00:30]} Rc5 {[%emt 0:03:19]} 34. Bb3 {[%emt 0:00:30]} Bf6 {[%emt 0:01:13]} 35. Qe4 {[%emt 0:00:30]} axb2 {[%emt 0:02:20]} 36. Qxb4 {[%emt 0:00:30]} Qe7 {[%emt 0:01:09]} 37. Qa4 {[%emt 0:01:30]} Rc7 {[%emt 0:00:11]} 38. Qa8+ {[%emt 0:00:30]} Kh7 {[%emt 0:00:27]} 39. Qe4 {[%emt 0:00:00]} Rd7 {[%emt 0:00:00]} 40. Rxd7 {[%emt 0:00:00]} Qxd7 {[%emt 0:00:00]} 41. Kxb2 {[%emt 0:01:30]} Kg8 {[%emt 0:06:06]} 42. a4 {[%emt 0:00:30]} Bd8 {[%emt 0:06:30]} 43. Qd5 {[%emt 0:09:30]} Qxd5 {[%emt 0:01:45]} 44. Bxd5 {[%emt 0:00:30]} Kf8 {[%emt 0:00:15]} 45. Kb3 {[%emt 0:01:30]} Ke7 {[%emt 0:00:30]} 46. Kc4 {[%emt 0:00:30]} Kd6 {[%emt 0:01:03]} 47. Bxf7 {[%emt 0:00:30]} Bb6 {[%emt 0:00:31]} 48. Bd5 {[%emt 0:07:30]} Bf2 {[%emt 0:01:29]} 49. Be4 {[%emt 0:01:30]} Bg1 {[%emt 0:00:40]} 50. Kb5 {[%emt 0:00:30]} Bf2 {[%emt 0:00:20]} 51. c3 {[%emt 0:01:30]} Bg1 {[%emt 0:00:09]} 52. a5 {[%emt 0:00:30]} Bf2 {[%emt 0:00:30]} 53. Kc4 {[%emt 0:00:00]} Bg1 {[%emt 0:00:28]} 54. Bb7 {[%emt 0:00:00]} Bf2 {[%emt 0:01:03]} 55. Kd3 {[%emt 0:00:30]} Bg1 {[%emt 0:00:33]} 56. Ke4 {[%emt 0:00:30]} Ba7 {[%emt 0:00:25]} 57. a6 {[%emt 0:00:30]} Bb6 {[%emt 0:00:22]} 58. c4 {[%emt 0:07:30]} Ba7 {[%emt 0:00:48]} 59. Bd5 {[%emt 0:00:30]} Bc5 {[%emt 0:00:39]} 60. f6 {[%emt 0:02:30]} gxf6 {[%emt 0:00:30]} 61. Kf5 {[%emt 0:00:00]} Ke7 {[%emt 0:00:39]} 62. Kg6 {[%emt 0:00:00]} Be3 {[%emt 0:01:10]} 63. Bf3 {[%emt 0:00:30]} Bc5 {[%emt 0:05:32]} 64. Kxh6 {[%emt 0:00:30]} Be3+ {[%emt 0:00:05]} 65. Kg6 {[%emt 0:00:00]} Ba7 {[%emt 0:00:40]} 66. Kf5 {[%emt 0:00:00]} Bb6 {[%emt 0:02:24]} 67. Bg2 {[%emt 0:00:00]} Ba7 {[%emt 0:00:35]} 68. Bb7 {[%emt 0:02:00]} Bd4 {[%emt 0:03:24]} 69. Bc8 {[%emt 0:00:30]} Ba7 {[%emt 0:00:48]} 70. Be6 {[%emt 0:00:30]} Bd4 {[%emt 0:00:07]} 71. Bd5 {[%emt 0:00:30]} Ba7 {[%emt 0:01:02]} 72. Bg2 {[%emt 0:00:00]} Bb6 {[%emt 0:01:04]} 73. Bc6 {[%emt 0:00:00]} Ba7 {[%emt 0:01:29]} 74. Bb5 {[%emt 0:00:30]} Bd4 {[%emt 0:00:00]} 75. Ba4 {[%emt 0:00:30]} Kf7 {[%emt 0:04:12]} 76. Bd7 {[%emt 0:00:30]} Ke7 {[%emt 0:00:03]} 77. Be6 {[%emt 0:00:30]} Kd6 {[%emt 0:02:18]} 78. c5+ {[%emt 0:02:30]} Bxc5 {[%emt 0:00:43]} 79. Kxf6 {[%emt 0:00:30]} Be3 {[%emt 0:00:33]} 80. g5 $18 {[%emt 0:00:30]} e4 {[%emt 0:00:02]} 81. g6 {[%emt 0:01:30]} Bd4+ {[%emt 0:00:30]} 82. Kf7 {[%emt 0:00:30]} e3 {[%emt 0:00:00]} 83. Bc4 {[%emt 0:00:00]} Kc5 {[%emt 0:00:33]} 84. Be2 {[%emt 0:00:00]} 1-0

[Event "TUR-chT Superleague 2018"]
[Site "Ankara"]
[Date "2018.08.03"]
[Round "10"]
[White "Kerigan, Demre"]
[Black "Erdogdu, Mert"]
[Result "1-0"]
[ECO "B25"]
[WhiteElo "2366"]
[BlackElo "2411"]
[Annotator "ChessBase"]
[PlyCount "105"]
[EventDate "2018.07.25"]
[EventType "team-tourn"]
[EventCountry "TUR"]
[SourceTitle "playchess.com"]
[Source "ChessBase"]
[SourceQuality "1"]
[TimeControl "40/5400+30:1800+30"]

1. e4 {[%emt 0:00:30]} c5 {[%emt 0:00:30]} 2. Nc3 {[%emt 0:00:00]} d6 {[%emt 0:00:30]} 3. Nge2 {[%emt 0:01:00]} Nf6 {[%emt 0:01:30]} 4. g3 {[%emt 0:00:30]} Nc6 {[%emt 0:00:00]} 5. Bg2 {[%emt 0:00:30]} g6 {[%emt 0:02:00]} 6. O-O {[%emt 0:01:30]} Bg7 {[%emt 0:00:30]} 7. d3 {[%emt 0:00:30]} O-O {[%emt 0:00:30]} 8. h3 {[%emt 0:00:00]} Nd7 {[%emt 0:09:30]} 9. f4 {[%emt 0:05:00]} Nd4 {[%emt 0:04:30]} 10. g4 {[%emt 0:03:30]} Rb8 {[%emt 0:05:30]} 11. a4 {[%emt 0:07:30]} a6 {[%emt 0:03:30]} 12. g5 {[%emt 0:14:30]} e6 {[%emt 0:13:30]} 13. Ng3 {[%emt 0:12:30]} b5 {[%emt 0:08:30]} 14. axb5 {[%emt 0:02:30]} axb5 {[%emt 0:00:00]} 15. Nce2 {[%emt 0:02:30]} b4 {[%emt 0:08:00]} 16. Nxd4 {[%emt 0:06:30]} cxd4 {[%emt 0:04:30]} 17. b3 {[%emt 0:01:30]} Qc7 {[%emt 0:04:30]} 18. Bb2 {[%emt 0:05:30]} Bb7 {[%emt 0:02:30]} 19. Qd2 {[%emt 0:03:30]} Qc5 {[%emt 0:05:30]} 20. Qf2 {[%emt 0:05:30]} Rbc8 {[%emt 0:04:30]} 21. Rfc1 {[%emt 0:06:13]} Ra8 {[%emt 0:08:59]} 22. Rxa8 {[%emt 0:08:44]} Rxa8 {[%emt 0:01:28]} 23. Ne2 {[%emt 0:00:06]} e5 {[%emt 0:02:04]} 24. f5 {[%emt 0:00:21]} Qc7 {[%emt 0:02:19]} 25. Ng3 {[%emt 0:01:55]} Ra2 {[%emt 0:00:48]} 26. Rb1 {[%emt 0:00:21]} Nc5 {[%emt 0:00:56]} 27. h4 {[%emt 0:00:56]} Qa5 {[%emt 0:01:49]} 28. Qe1 {[%emt 0:03:07]} Bc6 {[%emt 0:01:31]} 29. h5 {[%emt 0:00:40]} Bb5 {[%emt 0:01:47]} 30. Kh2 {[%emt 0:03:58]} Bf8 {[%emt 0:00:24]} 31. Qf2 {[%emt 0:00:59]} Qd8 {[%emt 0:01:40]} 32. Qd2 {[%emt 0:00:50]} Qa5 {[%emt 0:00:20]} 33. Ne2 {[%emt 0:00:32]} Qd8 {[%emt 0:01:29]} 34. Bf3 {[%emt 0:00:40]} h6 {[%emt 0:00:48]} 35. hxg6 {[%emt 0:01:44]} fxg6 {[%emt 0:00:26]} 36. Qxb4 {[%emt 0:00:38]} Be8 {[%emt 0:00:28]} 37. Qd2 {[%emt 0:01:06]} hxg5 {[%emt 0:00:30]} 38. Ng3 {[%emt 0:00:22]} g4 {[%emt 0:00:17]} 39. Bxg4 {[%emt 0:00:45]} Qh4+ {[%emt 0:00:30]} 40. Bh3 {[%emt 0:00:00]} Bh6 {[%emt 0:00:00]} 41. Qe2 {[%emt 0:03:33]} gxf5 {[%emt 0:08:57]} 42. Nxf5 {[%emt 0:14:13]} Bf4+ {[%emt 0:01:30]} 43. Kg2 {[%emt 0:00:15]} Qf6 {[%emt 0:02:30]} 44. Kh1 {[%emt 0:01:51]} Kf8 {[%emt 0:04:40]} 45. Qg4 {[%emt 0:03:22]} Bf7 {[%emt 0:07:07]} 46. b4 {[%emt 0:03:00]} Ne6 {[%emt 0:06:57]} 47. Nxd6 {[%emt 0:00:26]} Ng5 {[%emt 0:00:26]} 48. Nxf7 {[%emt 0:01:10]} Nxf7 {[%emt 0:01:34]} 49. b5 {[%emt 0:03:21]} Ng5 {[%emt 0:01:42]} 50. b6 {[%emt 0:00:31]} Nxh3 {[%emt 0:00:28]} 51. Qxh3 {[%emt 0:00:17]} Ke7 {[%emt 0:00:33]} 52. b7 {[%emt 0:00:37]} Qf8 {[%emt 0:00:31]} 53. b8=Q {[%emt 0:00:45]} 1-0

[Event "TUR-chT Superleague 2018"]
[Site "Ankara"]
[Date "2018.08.03"]
[Round "10"]
[White "Mamedjarova, Zeinab"]
[Black "Muzychuk, Mariya"]
[Result "0-1"]
[ECO "D04"]
[WhiteElo "2345"]
[BlackElo "2528"]
[Annotator "ChessBase"]
[PlyCount "82"]
[EventDate "2018.07.25"]
[EventType "team-tourn"]
[EventCountry "TUR"]
[SourceTitle "playchess.com"]
[Source "ChessBase"]
[SourceQuality "1"]
[TimeControl "40/5400+30:1800+30"]

1. d4 {[%emt 0:00:30]} d5 {[%emt 0:00:30]} 2. Nf3 {[%emt 0:00:30]} Nf6 {[%emt 0:00:30]} 3. e3 {[%emt 0:00:30]} g6 {[%emt 0:00:30]} 4. Bd3 {[%emt 0:00:30]} Bg7 {[%emt 0:00:30]} 5. Nbd2 {[%emt 0:00:30]} c5 {[%emt 0:01:30]} 6. c3 {[%emt 0:00:00]} O-O {[%emt 0:00:30]} 7. O-O {[%emt 0:00:00]} Nbd7 {[%emt 0:00:30]} 8. Re1 {[%emt 0:01:30]} b6 {[%emt 0:01:30]} 9. e4 {[%emt 0:07:30]} cxd4 {[%emt 0:02:30]} 10. e5 {[%emt 0:01:30]} dxc3 {[%emt 0:02:30]} 11. exf6 {[%emt 0:06:30]} cxd2 {[%emt 0:00:30]} 12. fxe7 {[%emt 0:07:30]} dxe1=Q+ {[%emt 0:01:30]} 13. Qxe1 {[%emt 0:00:30]} Qc7 {[%emt 0:01:30]} 14. e8=Q {[%emt 0:03:30]} Rxe8 {[%emt 0:00:30]} 15. Qxe8+ {[%emt 0:00:00]} Nf8 {[%emt 0:00:00]} 16. Qb5 {[%emt 0:16:00]} Bg4 {[%emt 0:22:00]} 17. Qxd5 {[%emt 0:03:30]} Rd8 {[%emt 0:00:00]} 18. Qb3 {[%emt 0:01:30]} Bxf3 {[%emt 0:04:00]} 19. gxf3 {[%emt 0:00:00]} Ne6 {[%emt 0:02:30]} 20. Be3 {[%emt 0:05:00]} Bxb2 {[%emt 0:04:30]} 21. Qxb2 {[%emt 0:04:30]} Rxd3 {[%emt 0:00:30]} 22. Rc1 {[%emt 0:00:30]} Qd7 {[%emt 0:03:30]} 23. Kg2 {[%emt 0:03:30]} Rd5 {[%emt 0:03:30]} 24. Qf6 {[%emt 0:03:30]} Rf5 {[%emt 0:05:30]} 25. Qc3 {[%emt 0:01:30]} Nf4+ {[%emt 0:06:30]} 26. Bxf4 {[%emt 0:01:30]} Rxf4 {[%emt 0:00:30]} 27. Qe5 {[%emt 0:01:30]} Rf5 {[%emt 0:01:30]} 28. Qe3 {[%emt 0:04:30]} Rh5 {[%emt 0:01:30]} 29. f4 {[%emt 0:00:30]} Ra5 {[%emt 0:00:30]} 30. a3 {[%emt 0:01:30]} Qg4+ {[%emt 0:02:30]} 31. Kh1 {[%emt 0:00:30]} Qe6 {[%emt 0:03:30]} 32. Rc3 {[%emt 0:02:30]} Qd5+ {[%emt 0:03:30]} 33. Kg1 {[%emt 0:00:30]} Rc5 {[%emt 0:08:15]} 34. h3 {[%emt 0:03:39]} Kg7 {[%emt 0:03:37]} 35. Kh2 {[%emt 0:00:41]} Qd6 {[%emt 0:01:16]} 36. Rd3 {[%emt 0:03:01]} Qf6 {[%emt 0:00:34]} 37. Qd2 {[%emt 0:04:01]} Rc4 {[%emt 0:00:54]} 38. Kg3 {[%emt 0:00:52]} h5 {[%emt 0:00:41]} 39. Rf3 {[%emt 0:02:09]} Qa1 {[%emt 0:05:52]} 40. Qd5 {[%emt 0:00:00]} Qg1+ {[%emt 0:04:09]} 41. Kh4 {[%emt 0:09:37]} Kh6 {[%emt 0:03:12]} 0-1